fUSD/lending_fUSD_20260420
["ID","MTS","AMOUNT","RATE_DAILY","PERIOD"]
[420877311,1776694262996,-151.0,0.00013699,2]
[420877312,1776694263007,-151.0,0.00013699,2]
[420877313,1776694263016,-151.0,0.00013699,2]
[420877314,1776694263025,-151.0,0.00013699,2]
[420877315,1776694263034,-151.0,0.00013699,2]
[420877316,1776694263044,-151.0,0.00013699,2]
[420877317,1776694263053,-151.0,0.00013699,2]
[420877318,1776694263062,-151.0,0.00013699,2]
[420877319,1776694263071,-151.0,0.00013699,2]
[420877320,1776694263080,-151.0,0.00013699,2]
[420877321,1776694263089,-153.004958,0.00013699,2]
[420877322,1776694263099,-718.19,0.00013699,2]
[420877323,1776694263109,-455.63,0.00013699,2]
[420877324,1776694263118,-787.383514,0.00013699,2]
[420877325,1776694263127,-787.383514,0.00013699,2]
[420877326,1776694263136,-787.383514,0.00013699,2]
[420877327,1776694263146,-787.383514,0.00013699,2]
[420877328,1776694263155,-787.383514,0.00013699,2]
[420877329,1776694263165,-787.383514,0.00013699,2]
[420877330,1776694263174,-787.383514,0.00013699,2]
[420877331,1776694263183,-787.383514,0.00013699,2]
[420877332,1776694263193,-787.383514,0.00013699,2]
[420877333,1776694263202,-787.383514,0.00013699,2]
[420877334,1776694263211,-787.383514,0.00013699,2]
[420877335,1776694263221,-787.383514,0.00013699,2]
[420877336,1776694263230,-787.383514,0.00013699,2]
[420877337,1776694263240,-787.383514,0.00013699,2]
[420877338,1776694263249,-787.383514,0.00013699,2]
[420877339,1776694263258,-787.383514,0.00013699,2]
[420877340,1776694263267,-787.383514,0.00013699,2]
[420877341,1776694263276,-787.383514,0.00013699,2]
[420877342,1776694263286,-787.383514,0.00013699,2]
[420877343,1776694263295,-787.383506,0.00013699,2]
[420877344,1776694263305,-1431.016224,0.00013699,2]
[420877345,1776694263314,-799.498945,0.00013699,2]
[420877346,1776694263324,-799.498945,0.00013699,2]
[420877347,1776694263334,-799.498945,0.00013699,2]
[420877348,1776694263343,-799.498945,0.00013699,2]
[420877349,1776694263353,-799.498945,0.00013699,2]
[420877350,1776694263362,-799.498945,0.00013699,2]
[420877351,1776694263371,-799.498945,0.00013699,2]
[420877352,1776694263382,-799.498945,0.00013699,2]
[420877353,1776694263391,-799.498945,0.00013699,2]
[420877354,1776694263400,-799.498945,0.00013699,2]
[420877355,1776694263410,-799.498945,0.00013699,2]
[420877356,1776694263419,-799.498945,0.00013699,2]
[420877357,1776694263429,-799.498945,0.00013699,2]
[420877358,1776694263439,-799.498945,0.00013699,2]
[420877359,1776694263448,-799.498945,0.00013699,2]
[420877360,1776694263464,-799.498945,0.00013699,2]
[420877361,1776694263473,-799.498945,0.00013699,2]
[420877362,1776694263483,-799.498945,0.00013699,2]
[420877363,1776694263492,-799.498945,0.00013699,2]
[420877364,1776694263501,-799.498954,0.00013699,2]
[420877365,1776694263511,-500.0,0.00013699,2]
[420877366,1776694263521,-500.0,0.00013699,2]
[420877367,1776694263530,-500.0,0.00013699,2]
[420877368,1776694263539,-500.0,0.00013699,2]
[420877369,1776694263549,-338.39936923,0.00013699,2]
[420877370,1776694263558,-500.0,0.00013699,2]
[420877371,1776694263567,-500.0,0.00013699,2]
[420877372,1776694263577,-500.0,0.00013699,2]
[420877373,1776694263588,-160.6543672,0.00013699,2]
[420877374,1776694263597,-500.0,0.00013699,2]
[420877375,1776694263607,-500.0,0.00013699,2]
[420877376,1776694263616,-501.00571865,0.00013699,2]
[420877377,1776694263626,-500.0,0.00013699,2]
[420877378,1776694263636,-500.0,0.00013699,2]
[420877379,1776694263645,-500.0,0.00013699,2]
[420877380,1776694263655,-500.0,0.00013699,2]
[420877381,1776694263664,-500.0,0.00013699,2]
[420877382,1776694263676,-500.0,0.00013699,2]
[420877383,1776694263686,-500.0,0.00013699,2]
[420877384,1776694263695,-500.0,0.00013699,2]
[420877385,1776694263704,-500.0,0.00013699,2]
[420877386,1776694263713,-500.0,0.00013699,2]
[420877387,1776694263723,-500.0,0.00013699,2]
[420877388,1776694263732,-500.0,0.00013699,2]
[420877389,1776694263741,-500.61074632,0.00013699,2]
[420877390,1776694263751,-500.0,0.00013699,2]
[420877391,1776694263761,-500.67020217,0.00013699,2]
[420877392,1776694263770,-211.48000666,0.00013699,2]
[420877393,1776694263779,-500.0,0.00013699,2]
[420877394,1776694263788,-500.0,0.00013699,2]
[420877395,1776694263798,-500.0,0.00013699,2]
[420877396,1776694263808,-500.0,0.00013699,2]
[420877397,1776694263817,-318.25209482,0.00013699,2]
[420877398,1776694263826,-500.0,0.00013699,2]
[420877399,1776694263835,-340.45534034,0.00013699,2]
[420877400,1776694263845,-500.0,0.00013699,2]
[420877401,1776694263855,-500.0,0.00013699,2]
[420877402,1776694263864,-500.0,0.00013699,2]
[420877403,1776694263874,-500.0,0.00013699,2]
[420877404,1776694263884,-500.0,0.00013699,2]
[420877405,1776694263894,-500.0,0.00013699,2]
[420877406,1776694263903,-500.0,0.00013699,2]
[420877407,1776694263913,-500.0,0.00013699,2]
[420877408,1776694263922,-500.0,0.00013699,2]
[420877409,1776694263932,-167.10086257,0.00013699,2]
[420877410,1776694263942,-500.0,0.00013699,2]
[420877411,1776694263951,-500.0,0.00013699,2]
[420877412,1776694263960,-500.0,0.00013699,2]
[420877413,1776694263969,-491.60420064,0.00013699,2]
[420877414,1776694263979,-500.0,0.00013699,2]
[420877415,1776694263989,-500.0,0.00013699,2]
[420877416,1776694263999,-500.0,0.00013699,2]
[420877417,1776694264010,-500.0,0.00013699,2]
[420877418,1776694264020,-500.0,0.00013699,2]
[420877419,1776694264029,-500.0,0.00013699,2]
[420877420,1776694264039,-500.72370135,0.00013699,2]
[420877421,1776694264048,-172.61273518,0.00013699,2]
[420877422,1776694264058,-2078.69,0.00013699,2]
[420877423,1776694264067,-1745.03,0.00013699,2]
[420877424,1776694264076,-666.0,0.00013699,2]
[420877425,1776694264086,-666.0,0.00013699,2]
[420877426,1776694264095,-666.0,0.00013699,2]
[420877427,1776694264105,-2941.19,0.00013699,2]
[420877428,1776694264114,-2941.19,0.00013699,2]
[420877429,1776694264123,-2941.19,0.00013699,2]
[420877430,1776694264133,-2941.19,0.00013699,2]
[420877431,1776694264143,-3267.99,0.00013699,2]
[420877432,1776694264152,-390.0,0.00013699,2]
[420877433,1776694264161,-209.92029872,0.00013699,2]
[420877434,1776694264171,-432.0,0.00013699,2]
[420877435,1776694264180,-432.0,0.00013699,2]
[420877436,1776694264190,-432.0,0.00013699,2]
[420877437,1776694264199,-432.0,0.00013699,2]
[420877438,1776694264208,-432.0,0.00013699,2]
[420877439,1776694264218,-432.0,0.00013699,2]
[420877440,1776694264228,-432.0,0.00013699,2]
[420877441,1776694264237,-292.43748387,0.00013699,2]
[420877442,1776694264248,-406.0,0.00013699,2]
[420877443,1776694264257,-987.36,0.00013699,2]
[420877444,1776694264266,-1325.0,0.00013699,2]
[420877445,1776694264276,-1325.0,0.00013699,2]
[420877446,1776694264286,-1325.0,0.00013699,2]
[420877447,1776694264295,-1325.0,0.00013699,2]
[420877448,1776694264304,-1325.0,0.00013699,2]
[420877449,1776694264314,-1325.0,0.00013699,2]
[420877450,1776694264323,-1325.0,0.00013699,2]
[420877451,1776694264332,-1325.0,0.00013699,2]
[420877452,1776694264342,-1325.0,0.00013699,2]
[420877453,1776694264351,-1325.0,0.00013699,2]
[420877454,1776694264360,-1325.0,0.00013699,2]
[420877455,1776694264370,-1325.0,0.00013699,2]
[420877456,1776694264381,-1325.0,0.00013699,2]
[420877457,1776694264391,-1325.0,0.00013699,2]
[420877458,1776694264401,-1325.0,0.00013699,2]
[420877459,1776694264410,-1325.0,0.00013699,2]
[420877460,1776694264420,-1325.0,0.00013699,2]
[420877461,1776694264429,-1325.0,0.00013699,2]
[420877462,1776694264439,-1325.0,0.00013699,2]
[420877463,1776694264448,-1325.0,0.00013699,2]
[420877464,1776694264457,-1325.0,0.00013699,2]
[420877465,1776694264467,-1325.0,0.00013699,2]
[420877466,1776694264476,-1325.0,0.00013699,2]
[420877467,1776694264485,-1334.0,0.00013699,2]
[420877468,1776694264495,-787.08,0.00013699,2]
[420877469,1776694264504,-347.06304136,0.00013699,2]
[420877470,1776694264513,-2419.69,0.000137,2]
[420877471,1776694264523,-150.0,0.000137,2]
[420877472,1776694264532,-150.0,0.000137,2]
[420877473,1776694264542,-150.21380411,0.000137,2]
[420877474,1776694264551,-2941.19,0.000137,2]
[420877475,1776694264561,-3702.29,0.000137,2]
[420877476,1776694264570,-133546.58,0.000137,2]
[420877477,1776694264580,-170.79,0.00013705,2]
[420877478,1776694264590,-666.0,0.00013719,2]
[420877479,1776694264599,-1576.0,0.0001372,2]
[420877480,1776694264608,-1576.0,0.0001372,2]
[420877481,1776694264618,-1576.0,0.0001372,2]
[420877482,1776694264628,-2817.0,0.0001372,2]
[420877483,1776694264637,-666.0,0.0001374,2]
[420877484,1776694264647,-927.0,0.00013741,2]
[420877485,1776694264656,-1219.0,0.00013741,2]
[420877486,1776694264666,-6030.0,0.00013741,2]
[420877487,1776694264675,-2474.0,0.00013741,2]
[420877488,1776694264685,-3780.0,0.00013741,2]
[420877489,1776694264694,-152.0,0.00013788,8]
[420877490,1776694264703,-166.66,0.00013836,2]
[420877491,1776694264712,-666.0,0.00013843,2]
[420877492,1776694264722,-987.36,0.00013844,2]
[420877493,1776694264731,-987.36,0.00013844,2]
[420877494,1776694264741,-987.36,0.00013844,2]
[420877495,1776694264751,-987.36,0.00013844,2]
[420877496,1776694264760,-987.36,0.00013844,2]
[420877497,1776694264770,-987.36,0.00013844,2]
[420877498,1776694264779,-985.17,0.00013844,2]
[420877499,1776694264788,-666.0,0.00013858,2]
[420877500,1776694264798,-787.08,0.00013859,2]
[420877501,1776694264807,-787.08,0.00013859,2]
[420877502,1776694264816,-787.08,0.00013859,2]
[420877503,1776694264826,-787.08,0.00013859,2]
[420877504,1776694264835,-787.08,0.00013859,2]
[420877505,1776694264844,-787.84,0.00013859,2]
[420877506,1776694264854,-200.0,0.00013875,2]
[420877507,1776694264863,-166.66,0.00013973,2]
[420877508,1776694264872,-666.0,0.00013989,2]
[420877509,1776694264881,-15988.96190047,0.0001399,2]
[420877510,1776694264890,-666.0,0.00013999,2]
[420877511,1776694264899,-1500.0,0.00014,2]
[420877512,1776694264907,-380.69,0.00014,2]
[420877513,1776694264916,-10000000.0,0.00014,2]
[420877514,1776694264926,-635.51,0.00014,2]
[420877515,1776694264935,-561.2,0.00014,2]
[420877516,1776694264946,-254.1,0.00014,2]
[420877517,1776694264955,-211.64,0.00014,2]
[420877518,1776694264964,-25000.0,0.00014,2]
[420877519,1776694264974,-335.72,0.00014,2]
[420877520,1776694264984,-2200.0,0.00014034,2]
[420877521,1776694264993,-2817.0,0.0001404,2]
[420877522,1776694265003,-162.0,0.0001404,2]
[420877523,1776694265012,-155.0,0.0001407,2]
[420877524,1776694265021,-623.0,0.00014094,2]
[420877525,1776694265030,-1349.0,0.00014094,2]
[420877526,1776694265040,-1048.0,0.00014094,2]
[420877527,1776694265049,-1265.0,0.00014094,2]
[420877528,1776694265058,-150.0,0.00014094,2]
[420877529,1776694265067,-166.66,0.0001411,2]
[420877530,1776694265076,-156.9,0.0001418,2]
[420877531,1776694265085,-151.0,0.00014182,2]
[420877532,1776694265095,-151.0,0.00014186,2]
[420877533,1776694265104,-151.0,0.00014187,2]
[420877534,1776694265112,-151.0,0.00014187,2]
[420877535,1776694265121,-151.0,0.00014187,2]
[420877536,1776694265131,-151.0,0.00014188,2]
[420877537,1776694265141,-151.0,0.0001419,2]
[420877538,1776694265150,-151.0,0.0001419,2]
[420877539,1776694265159,-173.5903091,0.00014237,15]
[420877540,1776694265169,-166.66,0.00014247,2]
[420877541,1776694265180,-1000.0,0.00014247,2]
[420877542,1776694265189,-1000.0,0.00014247,2]
[420877543,1776694265198,-1000.0,0.00014247,2]
[420877544,1776694265208,-1000.0,0.00014247,2]
[420877545,1776694265218,-612.72060808,0.00014247,2]
[420877546,1776694265229,-1000.0,0.00014247,2]
[420877547,1776694265239,-1000.0,0.00014247,2]
[420877548,1776694265249,-247.68044899,0.00014247,2]
[420877549,1776694265259,-1000.0,0.00014247,2]
[420877550,1776694265268,-1000.0,0.00014247,2]
[420877551,1776694265278,-1000.0,0.00014247,2]
[420877552,1776694265288,-1000.0,0.00014247,2]
[420877553,1776694265297,-1000.0,0.00014247,2]
[420877554,1776694265307,-1000.0,0.00014247,2]
[420877555,1776694265317,-1000.0,0.00014247,2]
[420877556,1776694265328,-1000.0,0.00014247,2]
[420877557,1776694265339,-1000.0,0.00014247,2]
[420877558,1776694265349,-1000.0,0.00014247,2]
[420877559,1776694265360,-735.10519631,0.00014247,2]
[420877560,1776694265369,-669.27883879,0.00014247,2]
[420877561,1776694265381,-1000.0,0.00014247,2]
[420877562,1776694265391,-1000.0,0.00014247,2]
[420877563,1776694265400,-1000.0,0.00014247,2]
[420877564,1776694265410,-810.66588032,0.00014247,2]
[420877565,1776694265420,-1040.7543966,0.00014247,2]
[420877566,1776694265429,-1000.0,0.00014247,2]
[420877567,1776694265439,-1000.0,0.00014247,2]
[420877568,1776694265448,-1000.0,0.00014247,2]
[420877569,1776694265457,-1000.0,0.00014247,2]
[420877570,1776694265466,-1000.0,0.00014247,2]
[420877571,1776694265475,-1000.0,0.00014247,2]
[420877572,1776694265485,-1000.0,0.00014247,2]
[420877573,1776694265494,-1000.0,0.00014247,2]
[420877574,1776694265503,-572.71695353,0.00014247,2]
[420877575,1776694265512,-694.82123559,0.00014247,2]
[420877576,1776694265522,-1000.0,0.00014247,2]
[420877577,1776694265531,-1000.0,0.00014247,2]
[420877578,1776694265541,-1000.0,0.00014247,2]
[420877579,1776694265550,-1000.0,0.00014247,2]
[420877580,1776694265559,-1000.0,0.00014247,2]
[420877581,1776694265569,-1000.0,0.00014247,2]
[420877582,1776694265579,-194.45786638,0.00014247,2]
[420877583,1776694265588,-1000.0,0.00014247,2]
[420877584,1776694265598,-1000.0,0.00014247,2]
[420877585,1776694265607,-152.0,0.0001425,9]
[420877586,1776694265617,-262.44121042,0.0001425,5]
[420877587,1776694265629,-312.0,0.00014268,2]
[420877588,1776694265639,-372.0,0.00014268,2]
[420877589,1776694265648,-695.0,0.00014268,2]
[420877590,1776694265659,-3000.0,0.00014308,2]
[420877591,1776694265668,-502.0,0.00014321,2]
[420877592,1776694265678,-1576.0,0.0001436,2]
[420877593,1776694265687,-162.0,0.0001436,2]
[420877594,1776694265696,-2817.0,0.0001436,2]
[420877595,1776694265706,-910.41855045,0.00014378,7]
[420877596,1776694265715,-166.66,0.00014384,2]
[420877597,1776694265725,-10420.62771776,0.0001439,2]
[420877598,1776694265734,-621.78829552,0.00014421,2]
[420877599,1776694265743,-721.12765535,0.00014421,2]
[420877600,1776694265753,-1299.0787441,0.00014454,2]
[420877601,1776694265763,-160.0,0.000145,3]
[420877602,1776694265772,-1596.9486158,0.00014553,2]
[420877603,1776694265782,-1000.0,0.00014567,3]
[420877604,1776694265791,-250.0,0.00014643,2]
[420877605,1776694265800,-250.0,0.00014643,2]
[420877606,1776694265810,-250.0,0.00014643,2]
[420877607,1776694265819,-250.0,0.00014643,2]
[420877608,1776694265828,-250.0,0.00014643,2]
[420877609,1776694265838,-250.0,0.00014643,2]
[420877610,1776694265848,-250.0,0.00014643,2]
[420877611,1776694265857,-273.0,0.00014643,2]
[420877612,1776694265866,-1576.0,0.0001468,2]
[420877613,1776694265875,-2817.0,0.0001468,2]
[420877614,1776694265886,-2817.0,0.00014684,2]
[420877615,1776694265895,-2817.0,0.00014684,2]
[420877616,1776694265904,-2817.0,0.00014684,2]
[420877617,1776694265913,-1500.0,0.00014687,2]
[420877618,1776694265923,-1500.0,0.00014687,2]
[420877619,1776694265932,-1500.0,0.00014687,2]
[420877620,1776694265942,-1500.0,0.00014687,2]
[420877621,1776694265951,-1500.0,0.00014687,2]
[420877622,1776694265960,-1500.0,0.00014687,2]
[420877623,1776694265970,-1500.0,0.00014687,2]
[420877624,1776694265979,-1500.0,0.00014687,2]
[420877625,1776694265988,-1500.0,0.00014687,2]
[420877626,1776694265997,-1365.0,0.00014687,2]
[420877627,1776694266006,-1277.66774412,0.00014696,3]
[420877628,1776694266015,-2641.9,0.000147,2]
[420877629,1776694266024,-3177.51,0.000147,2]
[420877630,1776694266034,-3177.57,0.000147,2]
[420877631,1776694266043,-1500.0,0.00014795,2]
[420877632,1776694266052,-1500.0,0.00014795,2]
[420877633,1776694266061,-1500.0,0.00014795,2]
[420877634,1776694266070,-1500.0,0.00014795,2]
[420877635,1776694266079,-1427.01254008,0.00014795,2]
[420877636,1776694266088,-1500.0,0.00014795,2]
[420877637,1776694266097,-1087.71193276,0.00014795,2]
[420877638,1776694266106,-1500.0,0.00014795,2]
[420877639,1776694266115,-1500.0,0.00014795,2]
[420877640,1776694266124,-1527.53729409,0.00014795,2]
[420877641,1776694266134,-1368.90686776,0.00014795,2]
[420877642,1776694266143,-952.9027958,0.00014795,2]
[420877643,1776694266152,-1500.0,0.00014795,2]
[420877644,1776694266161,-1500.0,0.00014795,2]
[420877645,1776694266171,-1500.0,0.00014795,2]
[420877646,1776694266180,-1500.0,0.00014795,2]
[420877647,1776694266190,-567.59339456,0.00014795,2]
[420877648,1776694266200,-1158.32333232,0.00014795,2]
[420877649,1776694266209,-1500.0,0.00014795,2]
[420877650,1776694266219,-1500.0,0.00014795,2]
[420877651,1776694266228,-1500.0,0.00014795,2]
[420877652,1776694266237,-1500.0,0.00014795,2]
[420877653,1776694266246,-1500.0,0.00014795,2]
[420877654,1776694266256,-1500.0,0.00014795,2]
[420877655,1776694266265,-1086.51341743,0.00014795,2]
[420877656,1776694266274,-1500.0,0.00014795,2]
[420877657,1776694266284,-1500.0,0.00014795,2]
[420877658,1776694266293,-1500.0,0.00014795,2]
[420877659,1776694266302,-1500.0,0.00014795,2]
[420877660,1776694266311,-858.82720542,0.00014795,2]
[420877661,1776694266320,-1500.0,0.00014795,2]
[420877662,1776694266329,-1500.0,0.00014795,2]
[420877663,1776694266339,-1500.0,0.00014795,2]
[420877664,1776694266348,-1500.0,0.00014795,2]
[420877665,1776694266357,-1500.0,0.00014795,2]
[420877666,1776694266367,-1714.0,0.0001485,2]
[420877667,1776694266376,-352.0,0.0001485,2]
[420877668,1776694266387,-2402.0,0.0001485,2]
[420877669,1776694266397,-343.0,0.0001485,2]
[420877670,1776694266406,-858.0,0.0001485,2]
[420877671,1776694266415,-193.0,0.0001485,2]
[420877672,1776694266424,-500.0,0.00014856,2]
[420877673,1776694266434,-156.9,0.00014966,2]
[420877674,1776694266443,-666.0,0.00014999,2]
[420877675,1776694266453,-2848159.8074781,0.00015,2]
[420877676,1776694266462,-250.5,0.00015,2]
[420877677,1776694266472,-252.72,0.00015,2]
[420877678,1776694266481,-228.4,0.00015,2]
[420877679,1776694266490,-1205.93,0.00015,2]
[420877680,1776694266500,-2070.27564146,0.00015,2]
[420877681,1776694266509,-8059.45941468,0.00015,2]
[420877682,1776694266518,-426.56764449,0.00015,2]
[420877683,1776694266528,-2002.1004342,0.00015,2]
[420877684,1776694266537,-2432.21323309,0.00015,14]
[420877685,1776694266547,-252.4,0.00015,2]
[420877686,1776694266557,-1801.0,0.00015,2]
[420877687,1776694266567,-263.1,0.00015,2]
[420877688,1776694266576,-370.64,0.00015,2]
[420877689,1776694266586,-204.83,0.00015,2]
[420877690,1776694266595,-24118.76481511,0.00015,7]
[420877691,1776694266604,-133546.58,0.00015,2]
[420877692,1776694266614,-10322.172652,0.00015,2]
[420877693,1776694266623,-1043.47319668,0.00015,2]
[420877694,1776694266632,-300.0,0.00015,2]
[420877695,1776694266642,-1235.0,0.00015,2]
[420877696,1776694266651,-619.0,0.00015,2]
[420877697,1776694266660,-867.0,0.00015,2]
[420877698,1776694266670,-151.0,0.00015008,2]
[420877699,1776694266679,-151.0,0.00015008,2]
[420877700,1776694266688,-151.0,0.00015008,2]
[420877701,1776694266697,-151.0,0.0001501,2]
[420877702,1776694266706,-151.16,0.0001501,2]
[420877703,1776694266715,-4803.0,0.00015021,2]
[420877704,1776694266725,-289.8636482,0.00015031,2]
[420877705,1776694266734,-151.0,0.00015041,2]
[420877706,1776694266743,-900.0,0.00015068,2]
[420877707,1776694266752,-3140.080694,0.00015068,2]
[420877708,1776694266762,-3140.080694,0.00015068,2]
[420877709,1776694266771,-3140.080694,0.00015068,2]
[420877710,1776694266780,-3140.080694,0.00015068,2]
[420877711,1776694266789,-3140.080694,0.00015068,2]
[420877712,1776694266799,-3140.080694,0.00015068,2]
[420877713,1776694266808,-3140.080694,0.00015068,2]
[420877714,1776694266817,-3140.080694,0.00015068,2]
[420877715,1776694266827,-3140.080694,0.00015068,2]
[420877716,1776694266836,-3140.080694,0.00015068,2]
[420877717,1776694266845,-3140.080694,0.00015068,2]
[420877718,1776694266854,-3140.080694,0.00015068,2]
[420877719,1776694266863,-3140.080694,0.00015068,2]
[420877720,1776694266873,-3140.080694,0.00015068,2]
[420877721,1776694266883,-3140.080694,0.00015068,2]
[420877722,1776694266892,-3140.080694,0.00015068,2]
[420877723,1776694266902,-3140.080694,0.00015068,2]
[420877724,1776694266911,-3140.080694,0.00015068,2]
[420877725,1776694266921,-3140.080694,0.00015068,2]
[420877726,1776694266931,-3140.080697,0.00015068,2]
[420877727,1776694266940,-800.0,0.00015068,2]
[420877728,1776694266951,-264.0,0.00015073,2]
[420877729,1776694266960,-150.0,0.00015073,2]
[420877730,1776694266970,-157.0,0.00015073,2]
[420877731,1776694266979,-190.59,0.00015085,2]
[420877732,1776694266988,-2419.69,0.000151,2]
[420877733,1776694266998,-300.0,0.000151,2]
[420877734,1776694267007,-3702.29,0.000151,2]
[420877735,1776694267017,-259.4492682,0.00015124,2]
[420877736,1776694267026,-176.0,0.00015124,2]
[420877737,1776694267036,-288.0,0.00015125,2]
[420877738,1776694267046,-1441.0,0.00015125,2]
[420877739,1776694267056,-176.82781849,0.00015125,2]
[420877740,1776694267066,-344.7626126,0.00015127,2]
[420877741,1776694267075,-515.0,0.00015127,2]
[420877742,1776694267086,-502.0,0.00015142,3]
[420877743,1776694267096,-1028.0,0.00015151,2]
[420877744,1776694267106,-481.0,0.00015194,2]
[420877745,1776694267115,-344.0,0.00015197,2]
[420877746,1776694267125,-150.0,0.000152,2]
[420877747,1776694267139,-151.0,0.00015205,2]
[420877748,1776694267149,-312.0,0.00015268,2]
[420877749,1776694267158,-372.0,0.00015268,2]
[420877750,1776694267168,-695.0,0.00015268,2]
[420877751,1776694267178,-1517.64,0.000153,2]
[420877752,1776694267187,-972.17154373,0.00015342,2]
[420877753,1776694267198,-2000.0,0.00015342,2]
[420877754,1776694267208,-2000.0,0.00015342,2]
[420877755,1776694267217,-2000.0,0.00015342,2]
[420877756,1776694267227,-2000.0,0.00015342,2]
[420877757,1776694267236,-2000.0,0.00015342,2]
[420877758,1776694267247,-2000.0,0.00015342,2]
[420877759,1776694267257,-1895.70211527,0.00015342,2]
[420877760,1776694267266,-2000.0,0.00015342,2]
[420877761,1776694267276,-2000.0,0.00015342,2]
[420877762,1776694267286,-2000.0,0.00015342,2]
[420877763,1776694267295,-2000.0,0.00015342,2]
[420877764,1776694267305,-2000.0,0.00015342,2]
[420877765,1776694267315,-990.46521868,0.00015342,2]
[420877766,1776694267324,-565.69628155,0.00015342,2]
[420877767,1776694267334,-2000.0,0.00015342,2]
[420877768,1776694267344,-2000.0,0.00015342,2]
[420877769,1776694267354,-2000.0,0.00015342,2]
[420877770,1776694267365,-2000.0,0.00015342,2]
[420877771,1776694267375,-2000.0,0.00015342,2]
[420877772,1776694267387,-2000.0,0.00015342,2]
[420877773,1776694267397,-2000.0,0.00015342,2]
[420877774,1776694267408,-2000.0,0.00015342,2]
[420877775,1776694267418,-1601.84899906,0.00015342,2]
[420877776,1776694267428,-2000.0,0.00015342,2]
[420877777,1776694267438,-2000.0,0.00015342,2]
[420877778,1776694267448,-513.42256969,0.000154,2]
[420877779,1776694267461,-2200.0,0.00015404,2]
[420877780,1776694267473,-3380.90893388,0.00015406,2]
[420877781,1776694267487,-173.5903091,0.00015411,19]
[420877782,1776694267503,-666.0,0.00015499,2]
[420877783,1776694267521,-1233.47927157,0.000155,2]
[420877784,1776694267538,-200.0,0.000155,2]
[420877785,1776694267552,-373.50967406,0.000155,2]
[420877786,1776694267568,-200.0,0.000155,2]
[420877787,1776694270466,-200.0,0.000155,2]
[420877788,1776694270485,-200.0,0.000155,2]
[420877789,1776694270520,-200.0,0.000155,2]
[420877790,1776694270565,-300.28158845,0.000155,2]
[420877791,1776694270605,-200.0,0.000155,2]
[420877792,1776694270628,-500.0,0.000155,2]
[420877793,1776694270639,-500.0,0.000155,2]
[420877794,1776694270651,-500.0,0.000155,2]
[420877795,1776694270660,-500.0,0.000155,2]
[420877796,1776694270670,-500.0,0.000155,2]
[420877797,1776694270681,-500.0,0.000155,2]
[420877798,1776694270690,-500.0,0.000155,2]
[420877799,1776694270699,-500.0,0.000155,2]
[420877800,1776694270708,-500.0,0.000155,2]
[420877801,1776694270717,-500.0,0.000155,2]
[420877802,1776694270727,-500.0,0.000155,2]
[420877803,1776694270737,-500.0,0.000155,2]
[420877804,1776694270747,-500.0,0.000155,2]
[420877805,1776694270756,-500.0,0.000155,2]
[420877806,1776694270765,-500.0,0.000155,2]
[420877807,1776694270775,-500.0,0.000155,2]
[420877808,1776694270786,-500.0,0.000155,2]
[420877809,1776694270796,-500.0,0.000155,2]
[420877810,1776694270805,-500.0,0.000155,2]